Cogmind - Beta 12 @@@ ROGUE MODE // 2023.11.02 @ 15:09:11 Player: Iceblade02 Result: Destroyed by Z-Imprinter with Zionite Laser-M Performance ------------- Evolutions (4) 2000 Regions Visited (14) 2800 Robots Destroyed (133) 665 Value Destroyed (4210) 4210 Prototype IDs (30) 600 Alien Tech Used (0) 0 Bonus (601) 601 TOTAL SCORE: 10876 Bonus ------- High Alert Combat Kills 110 Follower Combat Kills 165 Aligned with FarCom 300 Met Imprinter 300 Friendly Fire -274 Cogmind --------- Core Integrity 0/850 Matter 289/300 Energy 90/100 System Corruption 7% Temperature Cool (9) Movement Core (50) Location -6/Deep Caves Parts ------- > --- POWER (1) -------- (None) > --- PROPULSION (4) --- (None) > --- UTILITY (8) ------ Enhanced Optical Array Makeshift Terrain Scan Processor 0b10 Decoder Chip [Generic] Makeshift System Shield > --- WEAPON (2) ------- Ripper > --- INVENTORY (5) ---- Fusion Compressor Advanced Sensor Array Advanced Terrain Scanner Stasis Canceller Peak State ------------ > --- POWER ------------ Light Fission Core > --- PROPULSION ------- Cesium-ion Thruster Xenon Bombardment Thruster Nuclear Pulse Thruster Nuclear Pulse Thruster > --- UTILITY ---------- Small Storage Unit Enhanced Optical Array Advanced Sensor Array Advanced Terrain Scanner Makeshift Terrain Scan Processor Reaction Control System Cloaking Device Hacking Suite > --- WEAPON ----------- Powered Hammer Ripper > --- INVENTORY -------- Fusion Compressor 0b10 Decoder Chip [Generic] Stasis Canceller Makeshift Hacking Suite Makeshift System Shield Component Analysis Suite Improved Proton Missile Launcher Field Lobotomy Kit [Rating: 65] Favorites ----------- Power Improved Deuterium Engine Engine Improved Deuterium Engine Power Core Light Nuclear Core Propulsion Advanced Treads Treads Advanced Treads Wheel Compact Wheel Flight Unit Nuclear Pulse Thruster Utility Humpback Device Improved Heat Sink Storage Humpback Processor Advanced Visual Processing Unit Hackware Hacking Suite Protection Hardened Medium Armor Plating Weapon Ion Cannon Energy Gun Particle Gun Energy Cannon Ion Cannon Ballistic Gun Minigun Ballistic Cannon Improved Light Cannon Launcher Improved Grenade Launcher Special Weapon Plasma Flamer Impact Weapon Powered Hammer Slashing Weapon Ripper Build | -11 -10 -10 -10 -9 -8 -8 -7 -7 -7 -6 -6 -6 -6 -6 ------- Run | Jun Mat Min Exi Min Mat Sto Fac Low Low Fac Low Low Zio Dee Slots Evolved 8 | . . . . . 4 . 2 . . 2 . . . . Power . | . . . . . . . . . . . . . . . Propulsion 2 | . . . . . 1 . 1 . . . . . . . Utility 6 | . . . . . 3 . 1 . . 2 . . . . Weapon . | . . . . . . . . . . . . . . . Parts Attached 152 | 6 6 5 4 3 28 23 13 15 2 35 2 . 3 7 Power 14 | 1 . . . 1 4 3 1 1 . 3 . . . . Engine 8 | 1 . . . 1 3 2 . 1 . . . . . . Core 6 | . . . . . 1 1 1 . . 3 . . . . Reactor . | . . . . . . . . . . . . . . . Propulsion 25 | 2 1 . 1 . 5 4 2 3 . 7 . . . . Treads 11 | . . . 1 . 2 3 1 3 . 1 . . . . Leg . | . . . . . . . . . . . . . . . Wheel 10 | 2 1 . . . 3 1 1 . . 2 . . . . Hover . | . . . . . . . . . . . . . . . Flight 4 | . . . . . . . . . . 4 . . . . Utility 55 | 1 2 3 1 . 7 6 5 4 . 18 1 . 3 4 Device 26 | . 2 1 . . 4 2 4 2 . 8 1 . 1 1 Storage 8 | 1 . 1 1 . . 2 . . . 2 . . 1 . Processor 11 | . . 1 . . 3 . . 1 . 4 . . 1 1 Hackware 3 | . . . . . . . . . . 1 . . . 2 Protection 7 | . . . . . . 2 1 1 . 3 . . . . Artifact . | . . . . . . . . . . . . . . . Weapon 58 | 2 3 2 2 2 12 10 5 7 2 7 1 . . 3 Energy Gun 19 | 2 2 1 1 1 6 3 2 1 . . . . . . Energy Cannon 7 | . . . . . 2 3 1 . 1 . . . . . Ballistic Gun 2 | . . . . . . . . 2 . . . . . . Ballistic Cannon 1 | . . . . . . . . 1 . . . . . . Launcher 11 | . 1 1 . 1 2 1 1 1 . 2 . . . 1 Special Weapon 6 | . . . 1 . . . . . 1 3 . . . 1 Impact Weapon 2 | . . . . . . . . 1 . . 1 . . . Slashing Weapon 10 | . . . . . 2 3 1 1 . 2 . . . 1 Piercing Weapon . | . . . . . . . . . . . . . . . Special Melee Weapon . | . . . . . . . . . . . . . . . Unidentified Prototypes 1 | . . . . . . 1 . . . . . . . . Parts Lost 51 | . 1 . . 1 11 4 . 8 . 14 . . . 12 Power 8 | . . . . 1 4 1 . 1 . 1 . . . . Propulsion 19 | . 1 . . . 4 . . 4 . 6 . . . 4 Utility 14 | . . . . . 2 1 . . . 6 . . . 5 Weapon 10 | . . . . . 1 2 . 3 . 1 . . . 3 Highest Loss Streak 10 | . 1 . . 1 4 2 . 5 . 10 . . . 9 To Critical Strikes 1 | . . . . . . . . . . 1 . . . . Average Slot Usage (%) 89 | . 97 100 96 83 84 89 91 84 84 88 97 100 100 76 Engine 5 | . 14 14 14 12 7 1 . 6 7 5 . . . . Core 2 | . . . . . . 7 6 . . . 6 6 6 3 Treads 15 | . . . 9 14 16 17 14 22 23 22 . . . . Wheel 7 | . 27 28 18 14 9 9 15 1 . . . . . . Flight 2 | . . . . . . . . . . 1 26 26 26 12 Device 9 | . 12 7 . . 13 5 14 8 7 6 23 26 26 13 Storage 8 | . 14 14 14 14 9 9 7 7 7 6 6 6 10 5 Processor 12 | . . 6 10 . 10 18 15 15 15 13 15 13 8 16 Hackware 1 | . . . . . . . . . . 3 6 6 6 13 Protection 4 | . . . . . . 3 . 5 7 14 . . . . Energy Gun 6 | . 27 27 17 27 6 1 11 . . . . . . . Energy Cannon 4 | . . . . . 9 14 2 1 6 5 . . . . Ballistic Gun 1 | . . . . . . . . 5 . . . . . . Ballistic Cannon 1 | . . . . . . . . 6 . . . . . . Special Weapon 2 | . . . 10 . . . . . 6 5 . . . . Naked Turns . | . . . . . . . . . . . . . . . Heaviest Build 238 | 13 16 20 216 210 219 220 217 226 232 238 22 22 23 22 Greatest Support 94 | 26 26 26 26 16 32 32 32 64 64 94 23 23 23 23 Greatest Overweight (x) 22 | . 1 . 13 13 13 13 6 13 3 22 . . . 5 Average Overweight (x) 2 | . . . 1 12 12 12 6 5 3 1 . . . . Largest Inventory Capacity 35 | 8 8 8 35 35 35 35 35 35 35 35 8 8 8 8 Average Capacity 28 | 7 8 8 14 35 35 35 35 35 35 32 8 8 8 7 Most Carried 35 | 7 8 8 14 16 32 35 35 35 35 35 8 8 8 8 Average Carried 25 | 4 7 7 9 15 23 32 34 32 35 31 7 8 7 7 Final Capacity 35 | 8 8 8 35 35 35 35 35 35 35 8 8 8 8 5 Final Carried 35 | 4 8 8 14 16 29 35 35 35 35 8 8 8 8 4 Class Distribution -------------------- 77% | Hauler-Mutant 11% | Mutant 3% | Ninja Dominant Class ---------------- Mutant | -10/Materials Mutant | -10/Mines Mutant | -10/Exiles Hauler-Mutant | -9/Mines Hauler-Mutant | -8/Materials Hauler-Mutant | -8/Storage Hauler-Mutant | -7/Factory Hauler-Mutant | -7/Lower Caves Hauler-Mutant | -7/Lower Caves Hauler-Mutant | -6/Factory Ninja | -6/Lower Caves Ninja | -6/Lower Caves Derelict-Scout | -6/Zion Hacker-Assassin | -6/Deep Caves Resources | -11 -10 -10 -10 -9 -8 -8 -7 -7 -7 -6 -6 -6 -6 -6 ----------- Run | Jun Mat Min Exi Min Mat Sto Fac Low Low Fac Low Low Zio Dee Matter Collected 2510 | 237 283 85 40 85 196 319 210 477 . 451 60 . 30 37 Remotely . | . . . . . . . . . . . . . . . Salvage Created 4210 | . 363 10 . 69 1003 914 315 328 . 1208 . . . . Parts 233 | . 17 6 . 10 50 47 19 10 . 74 . . . . Haulers Intercepted . | . . . . . . . . . . . . . . . Recyclers Shooed 6 | . 2 . . . 1 2 . . . 1 . . . . Parts Field Recycled . | . . . . . . . . . . . . . . . Retrieved Matter . | . . . . . . . . . . . . . . . Parts Self-Destructed 10 | . . . . . . . . 10 . . . . . . Prevented 3 | . . . . . . . . . 3 . . . . . Kills | -11 -10 -10 -10 -9 -8 -8 -7 -7 -7 -6 -6 -6 -6 -6 ------- Run | Jun Mat Min Exi Min Mat Sto Fac Low Low Fac Low Low Zio Dee Combat Hostiles Destroyed 101 | . 8 3 . 4 21 26 7 7 . 25 . . . . Guns 15 | . 7 . . 1 2 1 2 2 . . . . . . Cannons 43 | . . . . . 14 10 2 4 . 13 . . . . AOE 36 | . 1 3 . 3 3 15 3 1 . 7 . . . . Classes Destroyed 13 | . 5 . . 2 2 2 2 . . . . . . . Worker 12 | . . . . 1 2 . 2 . . 7 . . . . Builder 11 | . . . . 1 1 3 . . . 6 . . . . Recycler 5 | . 1 . . . 2 . 1 . . 1 . . . . Operator 1 | . 1 . . . . . . . . . . . . . Watcher 2 | . 2 . . . . . . . . . . . . . Swarmer 27 | . 3 3 . 4 6 4 3 . . 4 . . . . Grunt 42 | . 5 . . . 12 10 2 5 . 8 . . . . Brawler 4 | . . . . . 1 3 . . . . . . . . Duelist 4 | . . . . . . 2 . 2 . . . . . . Protector 2 | . . . . . . 2 . . . . . . . . Sentry 10 | . . . . . 2 5 . . . 3 . . . . Hunter 5 | . . . . . . . 1 . . 4 . . . . Programmer 7 | . . . . . . . 1 . . 6 . . . . Thug 1 | . . . . . . 1 . . . . . . . . Best Kill Streak 14 | . 4 3 . 4 6 7 6 4 . 14 . . . . Combat Bots Only 11 | . 3 3 . 3 3 7 3 4 . 11 . . . . Max Kills in Single Turn 5 | . 1 3 . 3 4 3 4 1 . 5 . . . . Gunslinging . | . . . . . . . . . . . . . . . Exploded 3 | . 1 3 . 2 2 3 2 1 . 1 . . . . Melee . | . . . . . . . . . . . . . . . Uniques/NPCs Destroyed . | . . . . . . . . . . . . . . . Combat | -11 -10 -10 -10 -9 -8 -8 -7 -7 -7 -6 -6 -6 -6 -6 -------- Run | Jun Mat Min Exi Min Mat Sto Fac Low Low Fac Low Low Zio Dee Damage Taken 7699 | . 275 16 . 85 1417 891 425 810 . 2177 . 21 162 1420 Core 1367 | . 59 . . 6 138 88 62 162 . 211 . 12 71 558 Absorbed by Shields . | . . . . . . . . . . . . . . . Redirected to Shielding 102 | . . . . . . . . . . 102 . . . . Core Remaining (%) 75 | 100 . . . 74 . 58 . . 68 . . . . . Volleys Fired 263 | . 38 1 . 7 65 42 22 22 . 63 . . . 3 Largest 2 | . 2 1 . 2 2 2 2 2 . 2 . . . 1 Hottest 190 | . 115 30 . 115 125 135 122 121 . 190 . . . 43 Shots Fired 450 | . 73 1 . 12 118 62 38 37 . 106 . . . 3 Gun 180 | . 70 . . 10 57 7 27 9 . . . . . . Cannon 198 | . . . . . 59 41 9 27 . 62 . . . . Launcher 36 | . 3 1 . 2 2 14 2 1 . 10 . . . 1 Special 36 | . . . . . . . . . . 34 . . . 2 Kinetic 21 | . . . . . . . . 21 . . . . . . Thermal 358 | . 70 . . 10 87 45 36 15 . 95 . . . . Explosive 35 | . 3 1 . 2 2 14 2 1 . 10 . . . . Electromagnetic 33 | . . . . . 29 3 . . . . . . . 1 Robot Hit Streak 18 | . 16 17 . 18 14 17 12 10 . 13 . . . 1 Robot Miss Streak 7 | . 5 . . 2 2 1 2 1 . 7 . . . 1 Penetration Max . | . . . . . . . . . . . . . . . Secondary Targets . | . . . . . . . . . . . . . . . Shots Hit Robots 328 | . 50 1 . 5 91 45 31 31 . 73 . . . 1 Core Hits 216 | . 20 3 . 8 44 51 18 14 . 58 . . . . Critical Kills 4 | . . . . . 1 . . 1 . 2 . . . . Critical Parts Destroyed . | . . . . . . . . . . . . . . . Critical Strikes 18 | . 1 . . 1 2 . 1 3 . 10 . . . . Burn 12 | . 1 . . 1 1 . 1 . . 8 . . . . Meltdown 3 | . . . . . 1 . . . . 2 . . . . Destroy 1 | . . . . . . . . 1 . . . . . . Blast 1 | . . . . . . . . 1 . . . . . . Sever 1 | . . . . . . . . 1 . . . . . . Melee Attacks 49 | . . . . . 9 12 3 3 . 5 1 2 5 9 Impact 13 | . . . . . . . . 1 . . 1 1 3 7 Slashing 36 | . . . . . 9 12 3 2 . 5 . 1 2 2 Piercing . | . . . . . . . . . . . . . . . Sneak Attacks . | . . . . . . . . . . . . . . . Combat Hostiles . | . . . . . . . . . . . . . . . Follow-up Attacks . | . . . . . . . . . . . . . . . Damage Inflicted 11346 | . 805 107 . 252 2129 2905 1079 912 . 3157 . . . . Guns 2115 | . 608 . . 65 771 77 475 119 . . . . . . Cannons 3928 | . . . . . 1009 798 137 509 . 1475 . . . . Explosions 4786 | . 197 107 . 187 349 2030 428 173 . 1315 . . . . Melee 150 | . . . . . . . 39 111 . . . . . . Ramming 14 | . . . . . . . . . . 14 . . . . Kinetic 375 | . . . . . . . . 375 . . . . . . Thermal 5609 | . 608 . . 65 1276 838 612 253 . 1957 . . . . Explosive 4657 | . 197 107 . 187 349 2030 428 173 . 1186 . . . . Electromagnetic 541 | . . . . . 504 37 . . . . . . . . Impact . | . . . . . . . . . . . . . . . Slashing 150 | . . . . . . . 39 111 . . . . . . Piercing . | . . . . . . . . . . . . . . . Highest Corruption 7 | . . . . . . 3 1 1 . 6 . . 1 7 Average Corruption 2 | . . . . . . 3 1 1 . 4 . . 1 6 Corruption Purged 9 | . . . . . . . 1 1 . 7 . . . . Corruption Blocked 1 | . . . . . . . . . . 1 . . . . Effects 28 | . . . . . . 5 6 3 . 5 . . 1 8 Message Errors 5 | . . . . . . . 1 1 . 1 . . . 2 Matter Fused 5 | . . . . . . 3 . . . . . . 1 1 Heat Flow Errors 2 | . . . . . . . . . . 1 . . . 1 Energy Discharges 7 | . . . . . . 1 3 2 . . . . . 1 Parts Rejected 2 | . . . . . . . 2 . . . . . . . Data Loss (minor) 4 | . . . . . . 1 . . . 2 . . . 1 Data Loss (major) 1 | . . . . . . . . . . 1 . . . . Alerts 2 | . . . . . . . . . . . . . . 2 Overload Shots . | . . . . . . . . . . . . . . . Overflow Damage 340 | . 16 . . . 59 111 9 18 . 127 . . . . Projectiles 92 | . . . . . 10 23 . 18 . 41 . . . . Explosions 248 | . 16 . . . 49 88 9 . . 86 . . . . Melee . | . . . . . . . . . . . . . . . Knockbacks 4 | . . . . . . . . 4 . . . . . . Impact . | . . . . . . . . . . . . . . . Kinetic 4 | . . . . . . . . 4 . . . . . . Secondary . | . . . . . . . . . . . . . . . Self-Inflicted Damage 510 | . . 1 . . 65 228 . 33 . 183 . . . . Shots 14 | . . 1 . . 1 7 . 1 . 4 . . . . Rammed 2 | . . . . . . . . . . 2 . . . . Targets Rammed 2 | . . . . . . . . . . 2 . . . . Kicked . | . . . . . . . . . . . . . . . Crushed . | . . . . . . . . . . . . . . . Highest Temperature 450 | . 198 . . 195 210 450 357 27 . 386 . . 6 115 Average Temperature 93 | . 52 . . 97 54 141 147 6 . 104 . . 4 59 Received Heat Transfer 2219 | . 114 . . . 675 252 144 288 . 357 . . 47 342 Effects 3 | . . . . . . 2 1 . . . . . . . Energy Bleed 1 | . . . . . . 1 . . . . . . . . Matter Decay 2 | . . . . . . 1 1 . . . . . . . Siege Activations . | . . . . . . . . . . . . . . . Robots Corrupted 1 | . . . . . 1 . . . . . . . . . Combat Hostiles 1 | . . . . . 1 . . . . . . . . . Parts Fried 1 | . . . . . . . . . . 1 . . . . Impact Corruptions . | . . . . . . . . . . . . . . . Robots Melted 6 | . . . . . 1 . . . . 5 . . . . Combat Hostiles 6 | . . . . . 1 . . . . 5 . . . . Parts Melted 29 | . 3 . . . 1 5 4 . . 16 . . . . Heat Transferred 12660 | . 1718 . . 259 2368 1268 1110 407 . 5530 . . . . Parts Sabotaged . | . . . . . . . . . . . . . . . Parts Stolen . | . . . . . . . . . . . . . . . Parts Stripped . | . . . . . . . . . . . . . . . Power Chain Reactions . | . . . . . . . . . . . . . . . Missiles Intercepted . | . . . . . . . . . . . . . . . Alert | -11 -10 -10 -10 -9 -8 -8 -7 -7 -7 -6 -6 -6 -6 -6 ------- Run | Jun Mat Min Exi Min Mat Sto Fac Low Low Fac Low Low Zio Dee Peak Influence 605 | . 319 213 . 175 335 559 284 . . 605 . . . . Initial 254 | . . 124 . . . 137 254 . . . . . . . Average 117 | . 155 212 . 50 102 116 141 . . 110 . . . . Maximum Alert Level 2 | . 1 1 . . 1 2 1 . . 2 . . . . Low Security (%) 74 | 100 50 . . 100 72 76 72 . . 83 . . . . Level 1 20 | . 49 99 . . 27 17 27 . . 1 . . . . Level 2 5 | . . . . . . 5 . . . 14 . . . . Level 3 . | . . . . . . . . . . . . . . . Level 4 . | . . . . . . . . . . . . . . . Level 5 . | . . . . . . . . . . . . . . . High Security . | . . . . . . . . . . . . . . . Max Security . | . . . . . . . . . . . . . . . Squads Dispatched 27 | . 2 . . . 3 7 1 . . 14 . . . . Investigation 1 | . . . . . 1 . . . . . . . . . Extermination 7 | . . . . . . . 1 . . 6 . . . . Reinforcement 9 | . 2 . . . 2 1 . . . 4 . . . . Assault 4 | . . . . . . 2 . . . 2 . . . . Garrison 6 | . . . . . . 4 . . . 2 . . . . Intercept . | . . . . . . . . . . . . . . . Searches Triggered . | . . . . . . . . . . . . . . . Construction Impeded 3 | . . . . . . 1 . . . 2 . . . . Haulers Reinforced 1 | . . . . . . . . . . 1 . . . . Active Scanning Responses . | . . . . . . . . . . . . . . . Cargo Convoy Interrupts 1 | . . . . . . . . . . 1 . . . . Stealth | -11 -10 -10 -10 -9 -8 -8 -7 -7 -7 -6 -6 -6 -6 -6 --------- Run | Jun Mat Min Exi Min Mat Sto Fac Low Low Fac Low Low Zio Dee Distress Signals 9 | . . . . . 6 2 1 . . . . . . . Communications Jammed 83 | . . . . . . . 82 . . 1 . . . . Distress Signals 83 | . . . . . . . 82 . . 1 . . . . Times Spotted 185 | . 15 3 . 8 39 33 22 7 . 38 1 1 12 6 Peak Tracking Total 13 | . 5 3 . 4 6 10 6 4 . 6 1 1 13 4 Tactical Retreats 14 | . 1 . . . 6 . 1 . . 4 . . 1 1 Traps | -11 -10 -10 -10 -9 -8 -8 -7 -7 -7 -6 -6 -6 -6 -6 ------- Run | Jun Mat Min Exi Min Mat Sto Fac Low Low Fac Low Low Zio Dee Traps Triggered 2 | . . . . . . . 2 . . . . . . . Indirectly . | . . . . . . . . . . . . . . . Trap Hack Attempts . | . . . . . . . . . . . . . . . Triggered . | . . . . . . . . . . . . . . . Disarmed . | . . . . . . . . . . . . . . . Reprogrammed . | . . . . . . . . . . . . . . . Reused . | . . . . . . . . . . . . . . . Traps Extracted . | . . . . . . . . . . . . . . . Installed 1 | . . . . . . . . . . . 1 . . . Triggered 3 | . . . . . . . . . 1 1 1 . . . Machines | -11 -10 -10 -10 -9 -8 -8 -7 -7 -7 -6 -6 -6 -6 -6 ---------- Run | Jun Mat Min Exi Min Mat Sto Fac Low Low Fac Low Low Zio Dee Machines Disabled 13 | . . 1 . . 1 5 1 . . 2 . 1 . 2 Max in Single Turn 2 | . . 1 . . 1 2 1 . . 1 . 1 . . Garrison Access 1 | . . . . . . . . . . 1 . . . . Machines Repaired . | . . . . . . . . . . . . . . . Machines Sabotaged . | . . . . . . . . . . . . . . . Overloaded Fab Kills . | . . . . . . . . . . . . . . . Hacking | -11 -10 -10 -10 -9 -8 -8 -7 -7 -7 -6 -6 -6 -6 -6 --------- Run | Jun Mat Min Exi Min Mat Sto Fac Low Low Fac Low Low Zio Dee Machines Accessed 25 | . 3 . 2 . 1 3 6 2 . 7 1 . . . Terminals 19 | . 3 . . . 1 3 6 1 . 5 . . . . Fabricators . | . . . . . . . . . . . . . . . Repair Stations . | . . . . . . . . . . . . . . . Recycling Units 1 | . . . . . . . . . . 1 . . . . Scanalyzers 1 | . . . . . . . . . . 1 . . . . Garrison Access . | . . . . . . . . . . . . . . . Total Hacks 56 | . 8 . 2 . 4 10 12 2 . 17 1 . . . Successful 32 | . 6 . 2 . 1 7 6 2 . 7 1 . . . Failed 24 | . 2 . . . 3 3 6 . . 10 . . . . Catastrophic 4 | . 1 . . . 1 1 . . . 1 . . . . Database Lockouts . | . . . . . . . . . . . . . . . Manual 44 | . 6 . 1 . 4 7 9 1 . 11 . . 5 . Terminals 49 | . 8 . . . 4 10 12 1 . 14 . . . . Fabricators . | . . . . . . . . . . . . . . . Repair Stations . | . . . . . . . . . . . . . . . Recycling Units 2 | . . . . . . . . . . 2 . . . . Scanalyzers 1 | . . . . . . . . . . 1 . . . . Garrison Access . | . . . . . . . . . . . . . . . Terminal Hacks 19 | . 3 . 2 . . 4 3 2 . 4 1 . . . Record 6 | . . . 1 . . 1 . 1 . 3 . . . . Prototype ID Bank 3 | . 1 . . . . 1 1 . . . . . . . Open Door 2 | . . . . . . . . 1 . . 1 . . . Open DSF 2 | . . . . . . . 2 . . . . . . . Terminal Index 1 | . 1 . . . . . . . . . . . . . Unreport Threat 1 | . . . . . . . . . . 1 . . . . Locate Traps 2 | . . . . . . 2 . . . . . . . . Zone Layout 1 | . 1 . . . . . . . . . . . . . EX-Prototype ID Bank 1 | . . . 1 . . . . . . . . . . . Fabricator Hacks . | . . . . . . . . . . . . . . . Repair Station Hacks . | . . . . . . . . . . . . . . . Recycling Unit Hacks 2 | . . . . . . . . . . 2 . . . . Retrieve Matter 2 | . . . . . . . . . . 2 . . . . Scanalyzer . | . . . . . . . . . . . . . . . Garrison Access Hacks . | . . . . . . . . . . . . . . . Unauthorized Hacks 11 | . 3 . . . 1 3 3 . . 1 . . . . Terminals 11 | . 3 . . . 1 3 3 . . 1 . . . . Botnet 11 | . 3 . . . 1 3 3 . . 1 . . . . Fabricators . | . . . . . . . . . . . . . . . Repair Stations . | . . . . . . . . . . . . . . . Recycling Units . | . . . . . . . . . . . . . . . Scanalyzers . | . . . . . . . . . . . . . . . Garrison Access . | . . . . . . . . . . . . . . . Data Cores Recovered . | . . . . . . . . . . . . . . . Used . | . . . . . . . . . . . . . . . Hacking Detections 18 | . 3 . . . 1 3 4 . . 7 . . . . Full Trace Events 1 | . . . . . 1 . . . . . . . . . Feedback Events . | . . . . . . . . . . . . . . . Feedback Blocked . | . . . . . . . . . . . . . . . Robot Schematics Acquired 4 | . . . . . . . . . . . . . 4 . Robots Built . | . . . . . . . . . . . . . . . Authchips . | . . . . . . . . . . . . . . . Time . | . . . . . . . . . . . . . . . Total Robot Build Rating . | . . . . . . . . . . . . . . . Part Schematics Acquired 15 | . . . . . . . . . . . . . 15 . Parts Built . | . . . . . . . . . . . . . . . Authchips . | . . . . . . . . . . . . . . . Time . | . . . . . . . . . . . . . . . Total Part Build Rating . | . . . . . . . . . . . . . . . Parts Repaired . | . . . . . . . . . . . . . . . Time . | . . . . . . . . . . . . . . . Parts Recycled . | . . . . . . . . . . . . . . . Recycled Matter . | . . . . . . . . . . . . . . . Retrieved Matter . | . . . . . . . . . . . . . . . Retrieved Components . | . . . . . . . . . . . . . . . Parts Scanalyzed . | . . . . . . . . . . . . . . . Part Schematics Acquired . | . . . . . . . . . . . . . . . Parts Damaged . | . . . . . . . . . . . . . . . Bothacking | -11 -10 -10 -10 -9 -8 -8 -7 -7 -7 -6 -6 -6 -6 -6 ------------ Run | Jun Mat Min Exi Min Mat Sto Fac Low Low Fac Low Low Zio Dee Used RIF Installer . | . . . . . . . . . . . . . . . Robots Hacked . | . . . . . . . . . . . . . . . Non-combat . | . . . . . . . . . . . . . . . Combat . | . . . . . . . . . . . . . . . Robot Hacks Applied . | . . . . . . . . . . . . . . . Relay Couplers Released 3 | . . . . . . . . . . 3 . . . . Machine Destruction 3 | . . . . . . . . . . 3 . . . . Fabnet Peak Effective % . | . . . . . . . . . . . . . . . Robots Rewired . | . . . . . . . . . . . . . . . Allies Hacked . | . . . . . . . . . . . . . . . Hacks Repelled . | . . . . . . . . . . . . . . . Allies | -11 -10 -10 -10 -9 -8 -8 -7 -7 -7 -6 -6 -6 -6 -6 -------- Run | Jun Mat Min Exi Min Mat Sto Fac Low Low Fac Low Low Zio Dee Total Allies 7 | . . . . 2 . 2 . . . 1 . . . 2 Largest Group 2 | . . . . 2 1 2 . . . 1 . . . 1 Highest-Rated Group 119 | . . . . 55 31 62 . . . 37 . . . 119 Highest-Rated Ally 119 | . . . . 31 31 31 . . . 37 . . . 119 Total Orders 1 | . . . . . . . . . . 1 . . . . ROAM 1 | . . . . . . . . . . 1 . . . . Ally Attacks 64 | . . . . 8 2 21 . . . 2 . . . 31 Total Damage 1580 | . . . . 103 20 308 . . . 38 . . . 1111 Kills 13 | . . . . 2 . 3 . . . . . . . 8 Allies Corrupted . | . . . . . . . . . . . . . . . Allies Melted . | . . . . . . . . . . . . . . . Field Lobotomies 2 | . . . . . . . . . . 1 . . . 1 Intel | -11 -10 -10 -10 -9 -8 -8 -7 -7 -7 -6 -6 -6 -6 -6 ------- Run | Jun Mat Min Exi Min Mat Sto Fac Low Low Fac Low Low Zio Dee Robot Analysis Total . | . . . . . . . . . . . . . . . Derelict Logs Recovered 10 | . . 2 . 1 . . . 2 1 . 1 1 2 . Drone Launches . | . . . . . . . . . . . . . . . Drone Recoveries . | . . . . . . . . . . . . . . . Exploration | -11 -10 -10 -10 -9 -8 -8 -7 -7 -7 -6 -6 -6 -6 -6 ------------- Run | Jun Mat Min Exi Min Mat Sto Fac Low Low Fac Low Low Zio Dee Turns Passed 14248 | 53 395 398 1042 634 1447 1509 1464 2455 1045 2481 415 193 436 281 Spaces Moved 8533 | 43 219 426 832 215 360 355 643 637 268 999 1310 585 1280 361 Core 88 | 9 . . . . . . . . . . . . . 79 Treads 1301 | . . . . . . . . 500 268 533 . . . . Legs . | . . . . . . . . . . . . . . . Wheels 3238 | 34 219 426 832 215 360 355 643 137 . 17 . . . . Hover . | . . . . . . . . . . . . . . . Flight 3906 | . . . . . . . . . . 449 1310 585 1280 282 Fastest Speed 29 | 50 90 90 90 280 190 190 190 295 390 29 29 29 29 29 Average Speed 140 | 81 90 90 123 284 287 290 190 369 390 192 29 29 29 61 Slowest Speed 410 | 90 95 90 295 295 295 295 190 390 390 410 29 29 29 300 Overloaded Moves . | . . . . . . . . . . . . . . . Propulsion Burnouts . | . . . . . . . . . . . . . . . Robots Hopped 5 | . . . . . . . . . . 1 . . 4 . Cave-ins Triggered 1 | . . . . . . . . . . . . . . 1 Exploration Rate (%) 57 | 3 34 95 92 53 36 58 19 75 29 26 97 85 92 65 Regions Visited 14 Branch Regions 10 Pre-discovered Areas 6 | . . 1 . 2 . . . . 1 . . . 2 . Known Exits Taken 3 | . . 1 1 . . . . . . . . . 1 . Unknown Exits Taken 11 | 1 1 . . 1 1 1 1 1 1 1 1 1 . . Scrap Searched 17 | . . 2 . . . . . 4 . . 7 1 3 . Spaces Dug 34 | . . . . . 8 8 1 1 . 5 1 . 3 7 Terrain Destroyed 327 | . 18 4 . 9 47 62 19 16 . 141 1 . 3 7 Melee 34 | . . . . . 8 8 1 1 . 5 1 . 3 7 Projectile 22 | . . . . . 3 3 . 2 . 14 . . . . AOE 271 | . 18 4 . 9 36 51 18 13 . 122 . . . . Terrain Rammed . | . . . . . . . . . . . . . . . Walls Destroyed . | . . . . . . . . . . . . . . . Machines Disabled . | . . . . . . . . . . . . . . . Actions | -11 -10 -10 -10 -9 -8 -8 -7 -7 -7 -6 -6 -6 -6 -6 --------- Run | Jun Mat Min Exi Min Mat Sto Fac Low Low Fac Low Low Zio Dee Total 10226 | 60 344 438 854 226 636 754 846 701 269 1411 1343 605 1337 402 Wait 1002 | 3 68 3 . . 146 280 135 . . 270 22 20 36 19 Move 8511 | 42 218 425 831 214 359 354 642 636 267 996 1309 584 1273 361 Hop 3 | . . . . . . . . . . 1 . . 2 . Pick Up 159 | 9 9 1 11 2 26 34 17 16 . 19 5 . 8 2 Fast Attach 28 | 1 1 2 2 1 2 1 1 . . 14 . . 2 1 Attach 55 | 5 2 . . . 14 7 3 7 . 13 1 . 1 2 Detach 8 | . . . . . 1 2 . . . 3 . . 1 1 Swap 71 | . 3 3 2 2 12 15 9 8 2 10 1 . . 4 Drop 77 | . 5 3 7 . 2 7 14 9 . 15 3 . 10 2 Fire 263 | . 38 1 . 7 65 42 22 22 . 63 . . . 3 Melee 45 | . . . . . 9 12 3 3 . 5 1 1 4 7 Ram 1 | . . . . . . . . . . 1 . . . . Kick . | . . . . . . . . . . . . . . . Crush 1 | . . . . . . . . . . 1 . . . . Escape Stasis . | . . . . . . . . . . . . . . . Rewire 1 | . . . 1 . . . . . . . . . . . Trap 1 | . . . . . . . . . . . 1 . . . Miscellaneous . | . . . . . . . . . . . . . . . Route ------- -11/Junkyard -10/Materials -10/Mines (discovered 3 exits: *Mat x2 / *Exi) -10/Exiles (discovered 2 exits: *Min x2) -9/Mines -8/Materials (discovered 2 exits: *Fac / *Sto) -8/Storage (discovered 2 exits: *Fac / [*Rec]) -7/Factory (discovered 2 exits: *Fac / *Low) -7/Lower Caves -7/Lower Caves -6/Factory (discovered 2 exits: Fac / *Low) -6/Lower Caves -6/Lower Caves -6/Zion (discovered 2 exits: *Dee / [*Pro]) -6/Deep Caves History --------- Turn | Location | Event 13 | -11/Junkyard | Discovered new exit (range 16) 54 | -11/Junkyard | Entered Materials 306 | -10/Materials | Build established: Mutant 306 | -10/Materials | Discovered new exit (range 13) 449 | -10/Materials | Entered Mines 539 | -10/Mines | Learned Materials stockpile data 585 | -10/Mines | Learned location of Zion (-6) 650 | -10/Mines | Discovered new exit (range 11) 666 | -10/Mines | Identified exit to Materials 768 | -10/Mines | A weapon hastily lodged in a ceiling crevice suddenly fell to the ground 826 | -10/Mines | Discovered exit to Materials (range 5) 841 | -10/Mines | Deemed a non-threat by the Exiles lab entrance 842 | -10/Mines | Discovered new exit (range 5) 845 | -10/Mines | Identified exit to Exiles 847 | -10/Mines | Entered Exiles 869 | -10/Exiles | Discovered new exit (range 15) 884 | -10/Exiles | Identified exit to Mines 912 | -10/Exiles | Met 8R-AWN 929 | -10/Exiles | Met EX-HEX 979 | -10/Exiles | Met EX-BIN 1007 | -10/Exiles | Aligned with FarCom system 1008 | -10/Exiles | Given EX-Vault access code 1067 | -10/Exiles | Opened EX-Vault 1097 | -10/Exiles | Found Field Lobotomy Kit 1119 | -10/Exiles | Warned to stay clear of 0b10 Research branches 1228 | -10/Exiles | Met EX-DEC 1300 | -10/Exiles | Visited The Gauntlet 1827 | -10/Exiles | Discovered exit to Mines (range 14) 1889 | -10/Exiles | Left Exiles lab with Field Lobotomy Kit 1889 | -10/Exiles | Entered Mines 1890 | -9/Mines | Learned location of Storage (-8) 1922 | -9/Mines | Build established: Hauler-Mutant 2498 | -9/Mines | Discovered new exit (range 9) 2523 | -9/Mines | Entered Materials 2523 | -8/Materials | Accompanied by 1 ally 2523 | -8/Materials | Evolved 4 slots: Propulsion x1, Utility x3 2528 | -8/Materials | Led the pair of lost Derelicts to an unsafe place 3620 | -8/Materials | Lost 4 parts (1p1n2u) 3940 | -8/Materials | Discovered new exit (range 17) 3968 | -8/Materials | Discovered new exit (range 16) 3970 | -8/Materials | Entered Storage 4502 | -8/Storage | Used back door to open Recycling access 4502 | -8/Storage | Discovered new exit (range 4) 5068 | -8/Storage | Garrison activated, responded to threat 5329 | -8/Storage | Met a pair of Derelict thieves 5390 | -8/Storage | Garrison activated, responded to threat 5419 | -8/Storage | Destroyed 7 combat bots 5463 | -8/Storage | Discovered new exit (range 6) 5479 | -8/Storage | Entered Factory 5479 | -7/Factory | Evolved 2 slots: Propulsion x1, Utility x1 5496 | -7/Factory | Found Powered Armor 5502 | -7/Factory | Found Powered Armor 5753 | -7/Factory | Discovered new exit (range 18) 6932 | -7/Factory | Discovered new exit (range 6) 6943 | -7/Factory | Entered Lower Caves 7003 | -7/Lower Caves | Lost 5 parts (1p2n2w) 7432 | -7/Lower Caves | Lost 3 parts (2n1w) 7528 | -7/Lower Caves | Learned location of 1 exit from Factory 7605 | -7/Lower Caves | Learned Factory terminal intel 8701 | -7/Lower Caves | Encountered a Warlord checkpoint 8824 | -7/Lower Caves | Discovered new exit (range 20) 9398 | -7/Lower Caves | Entered another Lower Caves area 9620 | -7/Lower Caves | Discovered new exit (range 3) 9643 | -7/Lower Caves | Learned location of Extension (-5) 10443 | -7/Lower Caves | Entered Factory 10443 | -6/Factory | Evolved 2 slots: Utility x2 10444 | -6/Factory | Identified exit to Factory 10445 | -6/Factory | Loaded intel: 26 terminal locations 10671 | -6/Factory | Spotted B-75 Beast 12485 | -6/Factory | Garrison activated, responded to threat 12543 | -6/Factory | Destroyed 11 combat bots 12640 | -6/Factory | Lost 3 parts (1n2u) 12734 | -6/Factory | Lost 10 parts (1p4n4u1w) 12762 | -6/Factory | Assimilated P-60 Hacker with FLK Orb 12783 | -6/Factory | Cargo convoy interrupted 12866 | -6/Factory | Discovered new exit (range 21) 12893 | -6/Factory | First assault squad dispatched 12924 | -6/Factory | Entered Lower Caves 12926 | -6/Lower Caves | Encountered a Warlord checkpoint 13010 | -6/Lower Caves | Build established: Scout 13040 | -6/Lower Caves | Learned location of 1 exit from Factory 13116 | -6/Lower Caves | Spotted B-75 Beast 13321 | -6/Lower Caves | Discovered new exit (range 17) 13339 | -6/Lower Caves | Entered another Lower Caves area 13482 | -6/Lower Caves | Attacked by a delusional Derelict stockpiling Unaware 13498 | -6/Lower Caves | Learned Factory trap positions 13499 | -6/Lower Caves | Discovered new exit (range 7) 13532 | -6/Lower Caves | Entered Zion 13562 | -6/Zion | Discovered new exit (range 14) 13582 | -6/Zion | Received a hallucinogenic algorithm 13593 | -6/Zion | Given the Hacking Drone Bay 13610 | -6/Zion | Identified exit to Deep Caves 13770 | -6/Zion | Found Prototype Launcher 13777 | -6/Zion | Found Prototype Launcher 13789 | -6/Zion | Identified Gui. Missile Launcher (x2) 13813 | -6/Zion | Learned location of Warlord (-4) 13832 | -6/Zion | Rebuked by Imprinter 13915 | -6/Zion | Attempted to imprint without authorization 13915 | -6/Zion | Attacked by Zionites 13967 | -6/Zion | Saw the warning signs outside the Deep Caves entrance 13968 | -6/Zion | Entered Deep Caves 13969 | -6/Deep Caves | Met 5H-AD0 14001 | -6/Deep Caves | Crushed by falling debris 14032 | -6/Deep Caves | Lost 3 parts (2n1u) 14149 | -6/Deep Caves | Z-Facility disabled 14191 | -6/Deep Caves | Assimilated HX-TWZ(z) with FLK Orb 14200 | -6/Deep Caves | Attacked by Z-Imprinter 14211 | -6/Deep Caves | Core integrity fell below 50% 14231 | -6/Deep Caves | Core integrity fell below 20% 14249 | -6/Deep Caves | Destroyed by Z-Imprinter with Zionite Laser-M Last Messages --------------- 14191_ HX-TWZ(z) assimilated. 14195_ 8G-B78(z) destroyed. 14200_ Sml. Storage Unit destroyed. 14200_ Field Lobotomy Kit destroyed. 14200_ Mak. Hacking Suite destroyed. Z-Imprinter: GET AWAY FROM HERE! I've worked too hard for our future just to have you ruin everything! 14200_ Dropped Component Analysis Suite. 14201_ Acquired Imp. Proton Missile Launcher. 14206_ Acquired Ripper. 14206_ Imp. Proton Missile Launcher destroyed. 14207_ System corrupted: IFF burst signal emitted. 14208_ Dropped Lgt. Fission Core. 14209_ Acquired Adv. Terrain Scanner. 14210_ Powered Hammer destroyed. 14211_ Destroyed Imp. Reaction Control System. 14213_ TH-FMI(z) destroyed. 14215_ Destroyed Prototype Hover Unit. 14217_ HX-TWZ(z) destroyed. 14224_ Hacking Suite destroyed. Map ----- +----------------------------------------------------+ | | | | | | | | | | | | | ?????????????????????????????????????????????????? | | ?????????????????????????????????????????????????? | | ?????????????????????????????????????###?????????? | | ??????????????????????????????????### ??????????? | | ???????????????????????????######## ??????????? | | ????????????????????????#### ????###????? | | ????????????????????????? #???# ##???? | | ?????????????????????????? ##?# ##??? | | ??????????????????????????? ## #??? | | ???????????????????????????? #??? | | ????????????????????????????? ##?? | | ?????????????????????????????? #?? | | ??????????????????##??????????# #?? | | ??????????????????# ?????????# #??? | | ??????????????????# ????????# #??? | | ??????????????????# ??###?## #??? | | ???????????????????# ### ### ## #??? | | ????????????????????# I ## "#??????? | | ????????????????????#; #### ##??????? | | ????????????????????### @#### #?## #???????? | | ??????????????????????#####??###### ##???????? | | ????????????????????????????????## ##????????? | | ???????????????????????????????## ##?????????? | | ??????????????????????????????## ##??????????? | | ??????????????????????????????# ##???????????? | | ??????????????????????????????### ##????????????? | | ????????????????????????????????# #####??????? | | ???????????????????????????????## ###### #? | | ??????????????????????????????## #? | | ?????????????????????????????## ##? | | ?????????????????????????????# #########?? | | ????????????????????????????## ##???###### | | ??????????????????? "" ### #### | | ???????????????????""" | | ????????????????? " ##### | | ???????????????? ###### | | ??????????????? | | ???????????????? | | ???????????????? ## ## | | ???????????????? ## ######## #### | | ????????????????? #?# ???????# #??? | | ????????????????? ### ??# ??????# ##??? | | ????????????????????## ?# ??????# ##???? | | ?????????????????????## ? ??????####????? | +----------------------------------------------------+ Best States ------------- Heat Dissipation 64 Energy Generation 18 Energy Capacity 360 Matter Stores 300 Matter Capacity 300 Sight Range 22 Robot Scan Range 16 Terrain Scan Range 20 Terrain Scan Density 135 Jamming Range 12 Cloak Strength 2 Armor Coverage 225 Resistance: EM 15 Power Shielding 66 Weapon Shielding 66 Evasion (%) 72 Targeting Accuracy 8 Melee Accuracy 8 Recoil Reduction 4 Offensive Hacking 21 Defensive Hacking 11 Item Schematics ----------------- Adv. Plasma Cannon | -6/Zion | Archive Matter Compressor | -6/Zion | Archive Mni. Drone Bay | -6/Zion | Archive Hvy. Plasma Cannon | -6/Zion | Archive Hyp. Mass Driver | -6/Zion | Archive Mak. Sensor Array | -6/Zion | Archive Force Field | -6/Zion | Archive Point Defense System | -6/Zion | Archive Lrn. Missile Launcher | -6/Zion | Archive Imp. Remote Datajack | -6/Zion | Archive Proton Cannon | -6/Zion | Archive Adv. System Restoration Module | -6/Zion | Archive Arm. Leg | -6/Zion | Archive Adv. Terrain Scanner | -6/Zion | Archive Antigrav System | -6/Zion | Archive Robot Schematics ------------------ L-41 Fighter | -6/Zion | Archive M-22 Extractor | -6/Zion | Archive R-10 Processor | -6/Zion | Archive H-77 Assassin | -6/Zion | Archive Fabricated ------------ Nothing Alien Tech Used ----------------- None Achievements -------------- Hey, That's Mine! Significant Disruption Signs Are For Wimps Tank Challenges ------------ None Game ------ Seed MappingIonCompactor Manual? 0 Play Time 03:41:21 Cumulative 30.2 hours Start 2023.11.01 @ 11:29:05 End 2023.11.02 @ 15:09:11 Sessions 1 Manual Loads 0 Difficulty Rogue Special Mode None Game No. 19 Rogue 19 Adventurer 0 Explorer 0 Win Type - Total 1 Types 1/0/0/0/0/0/0/0/0 Lore% 27 Gallery% 27 Achievement% 30 Wizard Run 0 Options --------- ASCII 0 Keyboard 0 Movement Mouse Keybinds 0 Fullscreen 1 Font 24/Smallcaps Map View 76x50 Tactical HUD 1 Map Filters NONE Filters NONE Steam 1 RUN: 275716d5-fcb3-40d3-b317-5dc7a7eeeffb